[Event "FIDE Women World Blitz 2021"]
[Site "Warsaw"]
[Date "2021.12.30"]
[Round "12.38"]
[White "Beydullayeva, Govhar"]
[Black "Rakhmangulova, Anastasiya"]
[Result "1-0"]
[ECO "E68"]
[WhiteElo "2278"]
[BlackElo "2174"]
[Annotator "NA"]
[PlyCount "59"]
[EventDate "2021.12.29"]
[EventType "swiss"]
[EventCountry "POL"]
[Tiebreak "Cut1 Buchholz"]
[SourceTitle "playchess.com"]
[Source "ChessBase"]
[SourceQuality "1"]
[TimeControl "180+2"]

1. Nf3 {[%emt 0:00:01]} Nf6 {[%emt 0:00:03]} 2. c4 {[%emt 0:00:00]} g6 {
[%emt 0:00:16]} 3. g3 {[%emt 0:00:02]} Bg7 {[%emt 0:00:00]} 4. Bg2 {[%emt 0:00:
01]} d6 {[%emt 0:00:02]} 5. d4 {[%emt 0:00:01]} O-O {[%emt 0:00:01]} 6. Nc3 {
[%emt 0:00:00]} Nbd7 {[%emt 0:00:01]} 7. O-O {[%emt 0:00:02]} a6 {[%emt 0:00:
01]} 8. h3 {[%emt 0:00:14]} Rb8 {[%emt 0:00:02]} 9. a4 {[%emt 0:00:05]} Re8 {
[%emt 0:00:33]} 10. e4 {[%emt 0:00:03]} e5 {[%emt 0:00:05]} 11. Be3 {[%emt 0:
00:16]} exd4 {[%emt 0:00:14]} 12. Nxd4 {[%emt 0:00:00]} Ne5 {[%emt 0:00:13]}
13. b3 {[%emt 0:00:00]} c5 {[%emt 0:00:05]} 14. Nde2 {[%emt 0:00:15]} Be6 {
[%emt 0:00:35]} 15. f4 {[%emt 0:00:19]} Nc6 {[%emt 0:00:01]} 16. Qd2 {[%emt 0:
00:01]} Re7 {[%emt 0:00:43]} 17. Rad1 {[%emt 0:00:04]} Ne8 {[%emt 0:00:28]} 18.
f5 {[%emt 0:00:12]} Bc8 {[%emt 0:00:02]} 19. Nd5 {[%emt 0:00:18]} Rd7 {[%emt 0:
00:03]} 20. Bg5 {[%emt 0:00:48]} Qa5 {[%emt 0:00:03]} 21. f6 {[%emt 0:00:45]}
Bh8 {[%emt 0:00:01]} 22. h4 {[%emt 0:00:10]} Qxd2 {[%emt 0:00:02]} 23. Rxd2 {
[%emt 0:00:00]} b5 {[%emt 0:00:02]} 24. axb5 {[%emt 0:00:03]} axb5 25. cxb5 {
[%emt 0:00:07]} Rxb5 {[%emt 0:00:02]} 26. Bh3 {[%emt 0:00:01]} Rxb3 {[%emt 0:
00:09]} 27. Bxd7 Bxd7 {[%emt 0:00:01]} 28. Kg2 {[%emt 0:00:04]} Ne5 {[%emt 0:
00:04]} 29. Ne7+ {[%emt 0:00:02]} Kf8 30. Bh6+ {[%emt 0:00:00]} 1-0

[Event "FIDE Women World Blitz 2021"]
[Site "Warsaw"]
[Date "2021.12.30"]
[Round "12.39"]
[White "Paramzina, Anastasya"]
[Black "Smietanska, Wiktoria"]
[Result "1-0"]
[ECO "B90"]
[WhiteElo "2260"]
[BlackElo "1765"]
[Annotator "NA"]
[PlyCount "59"]
[EventDate "2021.12.29"]
[EventType "swiss"]
[EventCountry "POL"]
[Tiebreak "Cut1 Buchholz"]
[SourceTitle "playchess.com"]
[Source "ChessBase"]
[SourceQuality "1"]
[TimeControl "180+2"]

1. e4 {[%emt 0:00:01]} c5 {[%emt 0:00:02]} 2. Nf3 {[%emt 0:00:01]} d6 {[%emt 0:
00:01]} 3. d4 {[%emt 0:00:01]} cxd4 {[%emt 0:00:01]} 4. Nxd4 {[%emt 0:00:02]}
Nf6 {[%emt 0:00:02]} 5. Nc3 {[%emt 0:00:01]} a6 {[%emt 0:00:01]} 6. Nb3 {
[%emt 0:00:01]} g6 {[%emt 0:00:02]} 7. Be2 {[%emt 0:00:01]} Bg7 {[%emt 0:00:02]
} 8. g4 {[%emt 0:00:02]} O-O {[%emt 0:00:09]} 9. g5 {[%emt 0:00:04]} Nfd7 {
[%emt 0:00:09]} 10. h4 {[%emt 0:00:01]} b5 {[%emt 0:00:20]} 11. Qd3 {[%emt 0:
00:21]} Nc6 {[%emt 0:00:06]} 12. Qg3 {[%emt 0:00:33]} Nb4 {[%emt 0:00:12]} 13.
Bd1 {[%emt 0:00:02]} Bb7 {[%emt 0:00:16]} 14. h5 {[%emt 0:00:11]} Re8 {[%emt 0:
00:34]} 15. a3 {[%emt 0:00:26]} Nc6 {[%emt 0:00:05]} 16. Qh3 {[%emt 0:00:09]}
Nf8 {[%emt 0:00:03]} 17. Be3 {[%emt 0:00:06]} b4 {[%emt 0:00:27]} 18. axb4 {
[%emt 0:00:05]} Nxb4 {[%emt 0:00:04]} 19. Bd4 {[%emt 0:00:10]} e5 {[%emt 0:00:
08]} 20. Be3 {[%emt 0:00:01]} d5 {[%emt 0:00:03]} 21. exd5 {[%emt 0:00:07]}
Nxd5 {[%emt 0:00:01]} 22. Nxd5 {[%emt 0:00:37]} Bxd5 {[%emt 0:00:17]} 23. Bf3 {
[%emt 0:00:17]} e4 {[%emt 0:00:02]} 24. Be2 {[%emt 0:00:03]} Bxb3 {[%emt 0:00:
23]} 25. cxb3 {[%emt 0:00:02]} Qe7 {[%emt 0:00:08]} 26. hxg6 {[%emt 0:00:02]}
hxg6 {[%emt 0:00:08]} 27. Bd2 {[%emt 0:00:02]} Red8 {[%emt 0:00:04]} 28. Bc3 {
[%emt 0:00:02]} Bxc3+ {[%emt 0:00:04]} 29. bxc3 {[%emt 0:00:02]} Nh7 {[%emt 0:
00:04]} 30. Qxh7+ {[%emt 0:00:01]} 1-0

[Event "FIDE Women World Blitz 2021"]
[Site "Warsaw"]
[Date "2021.12.30"]
[Round "13.1"]
[White "Buksa, Nataliya"]
[Black "Assaubayeva, Bibisara"]
[Result "0-1"]
[ECO "D02"]
[WhiteElo "2199"]
[BlackElo "2400"]
[Annotator "NA"]
[PlyCount "162"]
[EventDate "2021.12.29"]
[EventType "swiss"]
[EventCountry "POL"]
[Tiebreak "Cut1 Buchholz"]
[SourceTitle "playchess.com"]
[Source "ChessBase"]
[SourceQuality "1"]
[TimeControl "180+2"]

1. d4 {[%emt 0:00:01]} Nf6 {[%emt 0:00:01]} 2. Nc3 {[%emt 0:00:01]} d5 {
[%emt 0:00:01]} 3. Bf4 {[%emt 0:00:01]} Bf5 {[%emt 0:00:07]} 4. e3 {[%emt 0:00:
02]} e6 {[%emt 0:00:03]} 5. Nf3 {[%emt 0:00:02]} Nbd7 {[%emt 0:00:01]} 6. Ne5 {
[%emt 0:00:01]} Bd6 {[%emt 0:00:09]} 7. g4 {[%emt 0:00:02]} Be4 {[%emt 0:00:05]
} 8. f3 {[%emt 0:00:01]} Bg6 {[%emt 0:00:01]} 9. h4 {[%emt 0:00:01]} h6 {
[%emt 0:00:12]} 10. Nxg6 {[%emt 0:00:02]} fxg6 {[%emt 0:00:02]} 11. Bd3 {
[%emt 0:00:01]} Nf8 {[%emt 0:00:07]} 12. Qe2 {[%emt 0:00:05]} Bxf4 {[%emt 0:00:
04]} 13. exf4 {[%emt 0:00:01]} Qd6 {[%emt 0:00:04]} 14. Qe5 {[%emt 0:00:14]}
O-O-O {[%emt 0:00:11]} 15. O-O-O {[%emt 0:00:02]} Qb6 {[%emt 0:00:15]} 16. g5 {
[%emt 0:00:23]} Nh5 {[%emt 0:00:05]} 17. Rhg1 {[%emt 0:00:07]} Qd6 {[%emt 0:00:
14]} 18. gxh6 {[%emt 0:00:15]} Rxh6 {[%emt 0:00:03]} 19. Rg4 {[%emt 0:00:06]}
Nf6 {[%emt 0:00:06]} 20. Rg2 {[%emt 0:00:22]} Rxh4 {[%emt 0:00:04]} 21. Bxg6 {
[%emt 0:00:02]} Rxf4 {[%emt 0:00:05]} 22. Qe3 {[%emt 0:00:28]} Rh4 {[%emt 0:00:
18]} 23. Kb1 {[%emt 0:00:36]} a6 {[%emt 0:00:01]} 24. Bd3 {[%emt 0:00:05]} Nh5
{[%emt 0:00:01]} 25. a3 {[%emt 0:00:05]} g6 {[%emt 0:00:18]} 26. Ne2 {[%emt 0:
00:02]} Nf4 {[%emt 0:00:18]} 27. Nxf4 {[%emt 0:00:02]} Qxf4 {[%emt 0:00:01]}
28. Qxf4 {[%emt 0:00:02]} Rxf4 {[%emt 0:00:01]} 29. Bxg6 {[%emt 0:00:03]} Rxf3
{[%emt 0:00:01]} 30. Re1 {[%emt 0:00:06]} Kd7 {[%emt 0:00:09]} 31. Bd3 {
[%emt 0:00:02]} Kd6 {[%emt 0:00:04]} 32. Rg8 {[%emt 0:00:09]} Rd7 {[%emt 0:00:
04]} 33. Rh1 {[%emt 0:00:04]} Rdf7 {[%emt 0:00:08]} 34. Rh6 {[%emt 0:00:02]}
R3f4 {[%emt 0:00:06]} 35. c3 {[%emt 0:00:03]} Rf3 {[%emt 0:00:04]} 36. Kc2 {
[%emt 0:00:01]} Nd7 {[%emt 0:00:06]} 37. Re8 {[%emt 0:00:07]} R3f6 {[%emt 0:00:
03]} 38. Rh5 {[%emt 0:00:04]} c5 {[%emt 0:00:06]} 39. c4 {[%emt 0:00:19]} cxd4
{[%emt 0:00:09]} 40. cxd5 {[%emt 0:00:01]} e5 {[%emt 0:00:06]} 41. a4 {[%emt 0:
00:06]} Rf2+ {[%emt 0:00:05]} 42. Kc1 {[%emt 0:00:02]} Nc5 {[%emt 0:00:05]} 43.
Bc4 {[%emt 0:00:02]} R2f5 {[%emt 0:00:08]} 44. Rh6+ {[%emt 0:00:01]} R7f6 {
[%emt 0:00:00]} 45. Rh7 {[%emt 0:00:01]} Rf1+ {[%emt 0:00:03]} 46. Bxf1 {
[%emt 0:00:05]} Rxf1+ {[%emt 0:00:01]} 47. Kd2 {[%emt 0:00:02]} Kxd5 {[%emt 0:
00:02]} 48. Rd8+ {[%emt 0:00:01]} Kc4 {[%emt 0:00:02]} 49. Rc7 {[%emt 0:00:02]}
Rf2+ {[%emt 0:00:01]} 50. Kc1 {[%emt 0:00:03]} Kd3 {[%emt 0:00:01]} 51. Kb1 {
[%emt 0:00:01]} Nxa4 {[%emt 0:00:02]} 52. Rxb7 {[%emt 0:00:01]} Nc5 {[%emt 0:
00:07]} 53. Rc7 {[%emt 0:00:07]} Ne4 {[%emt 0:00:02]} 54. Ka2 {[%emt 0:00:00]}
Nc3+ {[%emt 0:00:01]} 55. Kb3 {[%emt 0:00:02]} Nd1 {[%emt 0:00:03]} 56. Rh7 {
[%emt 0:00:02]} Rxb2+ {[%emt 0:00:00]} 57. Ka3 {[%emt 0:00:00]} Rb5 {[%emt 0:
00:02]} 58. Rh3+ {[%emt 0:00:01]} Kc2 {[%emt 0:00:02]} 59. Rc8+ {[%emt 0:00:02]
} Nc3 {[%emt 0:00:01]} 60. Rh2+ {[%emt 0:00:00]} Kd3 {[%emt 0:00:01]} 61. Rh3+
{[%emt 0:00:01]} Ke4 {[%emt 0:00:02]} 62. Rh4+ {[%emt 0:00:01]} Kd5 {[%emt 0:
00:01]} 63. Rd8+ {[%emt 0:00:01]} Kc4 {[%emt 0:00:01]} 64. Rc8+ {[%emt 0:00:01]
} Rc5 {[%emt 0:00:01]} 65. Rxc5+ {[%emt 0:00:05]} Kxc5 {[%emt 0:00:01]} 66. Kb3
{[%emt 0:00:01]} a5 {[%emt 0:00:00]} 67. Rh8 {[%emt 0:00:02]} a4+ {[%emt 0:00:
01]} 68. Kc2 {[%emt 0:00:01]} a3 {[%emt 0:00:02]} 69. Ra8 {[%emt 0:00:05]} a2 {
[%emt 0:00:01]} 70. Kb2 {[%emt 0:00:04]} e4 {[%emt 0:00:02]} 71. Rc8+ {[%emt 0:
00:02]} Kb4 {[%emt 0:00:02]} 72. Rc7 {[%emt 0:00:04]} e3 {[%emt 0:00:01]} 73.
Re7 {[%emt 0:00:01]} Kc4 {[%emt 0:00:02]} 74. Rc7+ {[%emt 0:00:02]} Kd3 {
[%emt 0:00:01]} 75. Rh7 {[%emt 0:00:03]} e2 {[%emt 0:00:02]} 76. Rh3+ {[%emt 0:
00:02]} Kd2 {[%emt 0:00:01]} 77. Rh2 {[%emt 0:00:01]} Kd1 {[%emt 0:00:01]} 78.
Rh4 {[%emt 0:00:02]} Nb5 {[%emt 0:00:04]} 79. Rh1+ {[%emt 0:00:04]} e1=Q {
[%emt 0:00:02]} 80. Rxe1+ {[%emt 0:00:01]} Kxe1 {[%emt 0:00:01]} 81. Kxa2 {
[%emt 0:00:01]} d3 {[%emt 0:00:02]} 0-1

[Event "FIDE Women World Blitz 2021"]
[Site "Warsaw"]
[Date "2021.12.30"]
[Round "13.1"]
[White "Kazarian, Anna-Maja"]
[Black "Antolak, Julia"]
[Result "0-1"]
[ECO "B80"]
[WhiteElo "2138"]
[BlackElo "2334"]
[Annotator "NA"]
[PlyCount "82"]
[EventDate "2021.12.29"]
[EventType "swiss"]
[EventCountry "POL"]
[Tiebreak "Cut1 Buchholz"]
[SourceTitle "playchess.com"]
[Source "ChessBase"]
[SourceQuality "1"]
[TimeControl "180+2"]

1. e4 {[%emt 0:00:01]} c5 {[%emt 0:00:00]} 2. Nf3 {[%emt 0:00:01]} d6 {[%emt 0:
00:01]} 3. d4 {[%emt 0:00:02]} cxd4 {[%emt 0:00:01]} 4. Nxd4 {[%emt 0:00:01]}
Nf6 {[%emt 0:00:00]} 5. Nc3 {[%emt 0:00:01]} a6 {[%emt 0:00:01]} 6. Be3 {
[%emt 0:00:08]} e6 {[%emt 0:00:02]} 7. f3 {[%emt 0:00:05]} h5 {[%emt 0:00:01]}
8. Qd2 {[%emt 0:00:04]} Nbd7 {[%emt 0:00:01]} 9. a4 {[%emt 0:00:42]} b6 {
[%emt 0:00:06]} 10. Be2 {[%emt 0:00:02]} Bb7 {[%emt 0:00:00]} 11. O-O {[%emt 0:
00:11]} Be7 {[%emt 0:00:01]} 12. Bd3 {[%emt 0:00:29]} Qc7 {[%emt 0:00:05]} 13.
Qf2 {[%emt 0:00:07]} O-O {[%emt 0:00:09]} 14. Qg3 {[%emt 0:00:15]} Rac8 {
[%emt 0:00:16]} 15. Kh1 {[%emt 0:00:14]} d5 {[%emt 0:00:06]} 16. Bf4 {[%emt 0:
00:26]} h4 {[%emt 0:01:25]} 17. Bxc7 {[%emt 0:00:23]} hxg3 {[%emt 0:00:01]} 18.
Bxg3 {[%emt 0:00:02]} dxe4 {[%emt 0:00:11]} 19. fxe4 {[%emt 0:00:02]} Rfd8 {
[%emt 0:00:10]} 20. Nb3 {[%emt 0:00:11]} Nf8 {[%emt 0:00:22]} 21. e5 {[%emt 0:
00:02]} Nd5 {[%emt 0:00:06]} 22. Ne4 {[%emt 0:00:03]} Nb4 {[%emt 0:00:07]} 23.
Rad1 {[%emt 0:00:11]} Nxc2 {[%emt 0:00:06]} 24. Bxc2 {[%emt 0:00:03]} Rxc2 {
[%emt 0:00:01]} 25. Rxd8 {[%emt 0:00:01]} Bxd8 {[%emt 0:00:01]} 26. Nbd2 {
[%emt 0:00:03]} Rxb2 {[%emt 0:00:08]} 27. h3 {[%emt 0:00:02]} Be7 {[%emt 0:00:
06]} 28. Rf2 {[%emt 0:00:02]} b5 {[%emt 0:00:03]} 29. axb5 {[%emt 0:00:02]}
axb5 {[%emt 0:00:01]} 30. Nd6 {[%emt 0:00:01]} Bd5 {[%emt 0:00:05]} 31. N2e4 {
[%emt 0:00:01]} Rxf2 {[%emt 0:00:01]} 32. Bxf2 {[%emt 0:00:01]} b4 {[%emt 0:00:
03]} 33. Bd4 {[%emt 0:00:02]} b3 {[%emt 0:00:01]} 34. Bb2 {[%emt 0:00:01]} Nd7
{[%emt 0:00:03]} 35. Kg1 {[%emt 0:00:02]} Nb6 {[%emt 0:00:06]} 36. Nc3 {
[%emt 0:00:02]} Kf8 {[%emt 0:00:06]} 37. Ndb5 {[%emt 0:00:00]} Nc4 {[%emt 0:00:
03]} 38. Nxd5 {[%emt 0:00:02]} exd5 {[%emt 0:00:01]} 39. Bd4 {[%emt 0:00:07]}
b2 {[%emt 0:00:01]} 40. Nc3 {[%emt 0:00:02]} Nd2 {[%emt 0:00:03]} 41. Kf2 {
[%emt 0:00:07]} b1=Q {[%emt 0:00:02]} 0-1

[Event "FIDE Women World Blitz 2021"]
[Site "Warsaw"]
[Date "2021.12.30"]
[Round "13.2"]
[White "Gunina, Valentina"]
[Black "Koneru, Humpy"]
[Result "1-0"]
[ECO "D37"]
[WhiteElo "2480"]
[BlackElo "2586"]
[Annotator "ChessBase"]
[PlyCount "57"]
[EventDate "2021.12.29"]
[EventType "swiss"]
[EventCountry "POL"]
[Tiebreak "Cut1 Buchholz"]
[SourceTitle "playchess.com"]
[Source "ChessBase"]
[SourceQuality "1"]
[TimeControl "180+2"]

1. d4 {[%emt 0:00:02]} Nf6 {[%emt 0:00:02]} 2. c4 {[%emt 0:00:01]} e6 {[%emt 0:
00:02]} 3. Nf3 {[%emt 0:00:02]} d5 {[%emt 0:00:01]} 4. Nc3 {[%emt 0:00:01]}
Nbd7 {[%emt 0:00:01]} 5. Bf4 {[%emt 0:00:01]} dxc4 {[%emt 0:00:03]} 6. e3 {
[%emt 0:00:01]} b5 {[%emt 0:00:09]} 7. Nxb5 {[%emt 0:00:06]} Bb4+ {[%emt 0:00:
04]} 8. Nc3 {[%emt 0:00:02]} Nd5 {[%emt 0:00:04]} 9. a3 {[%emt 0:00:01]} Nxc3 {
[%emt 0:00:06]} 10. Qd2 {[%emt 0:00:01]} Bxa3 {[%emt 0:00:42]} 11. Qxc3 {
[%emt 0:00:33]} Bd6 {[%emt 0:00:02]} 12. Bg5 {[%emt 0:00:09]} f6 {[%emt 0:00:
12]} 13. Bf4 {[%emt 0:00:06]} Nb6 {[%emt 0:00:16]} 14. Bxc4 {[%emt 0:00:09]}
Nxc4 {[%emt 0:00:14]} 15. Qxc4 {[%emt 0:00:01]} Bxf4 {[%emt 0:00:17]} 16. exf4
{[%emt 0:00:01]} Qd5 {[%emt 0:00:11]} 17. Qxc7 {[%emt 0:00:07]} Qe4+ {[%emt 0:
00:06]} 18. Kd2 {[%emt 0:00:10]} O-O {[%emt 0:00:07]} 19. Rhe1 {[%emt 0:00:11]}
Qg6 {[%emt 0:00:14]} 20. g3 {[%emt 0:00:02]} Qh5 {[%emt 0:00:29]} 21. Re3 {
[%emt 0:00:02]} Qb5 {[%emt 0:00:04]} 22. b3 {[%emt 0:00:08]} a5 {[%emt 0:00:03]
} 23. Qc4 {[%emt 0:00:04]} Qd7 {[%emt 0:00:03]} 24. f5 {[%emt 0:00:02]} Qd5 {
[%emt 0:00:07]} 25. fxe6 {[%emt 0:00:04]} Qxc4 {[%emt 0:00:07]} 26. bxc4 {
[%emt 0:00:02]} Re8 {[%emt 0:00:01]} 27. d5 {[%emt 0:00:02]} a4 {[%emt 0:00:02]
} 28. Nd4 {[%emt 0:00:04]} Ba6 {[%emt 0:00:01]} 29. Rxa4 {[%emt 0:00:01]} 1-0

[Event "FIDE Women World Blitz 2021"]
[Site "Warsaw"]
[Date "2021.12.30"]
[Round "13.2"]
[White "Badelka, Olga"]
[Black "Katkov, Michelle"]
[Result "1-0"]
[ECO "A18"]
[WhiteElo "2188"]
[BlackElo "1651"]
[Annotator "NA"]
[PlyCount "95"]
[EventDate "2021.12.29"]
[EventType "swiss"]
[EventCountry "POL"]
[Tiebreak "Cut1 Buchholz"]
[SourceTitle "playchess.com"]
[Source "ChessBase"]
[SourceQuality "1"]
[TimeControl "180+2"]

1. c4 {[%emt 0:00:01]} Nf6 {[%emt 0:00:01]} 2. Nc3 {[%emt 0:00:00]} e6 {
[%emt 0:00:01]} 3. e4 {[%emt 0:00:01]} d5 {[%emt 0:00:02]} 4. e5 {[%emt 0:00:
01]} d4 {[%emt 0:00:05]} 5. exf6 {[%emt 0:00:01]} dxc3 6. bxc3 {[%emt 0:00:01]}
Qxf6 {[%emt 0:00:03]} 7. d4 {[%emt 0:00:01]} Nc6 {[%emt 0:00:04]} 8. Nf3 {
[%emt 0:00:02]} e5 {[%emt 0:00:09]} 9. Bg5 {[%emt 0:00:02]} Qg6 {[%emt 0:00:01]
} 10. h4 {[%emt 0:00:08]} Bg4 {[%emt 0:00:24]} 11. d5 {[%emt 0:00:05]} Ne7 {
[%emt 0:00:17]} 12. Qa4+ {[%emt 0:00:04]} c6 {[%emt 0:00:05]} 13. Be2 {[%emt 0:
00:11]} Qe4 {[%emt 0:00:24]} 14. Be3 {[%emt 0:00:08]} b5 {[%emt 0:00:12]} 15.
Qa6 {[%emt 0:00:15]} Bxf3 {[%emt 0:00:39]} 16. gxf3 {[%emt 0:00:16]} Qc2 {
[%emt 0:00:07]} 17. Rc1 {[%emt 0:00:03]} Qa4 {[%emt 0:00:42]} 18. Qb7 {[%emt 0:
00:04]} Rd8 {[%emt 0:00:01]} 19. dxc6 {[%emt 0:00:05]} bxc4 {[%emt 0:00:07]}
20. c7 {[%emt 0:00:32]} Rc8 {[%emt 0:00:01]} 21. f4 {[%emt 0:00:19]} Qc6 {
[%emt 0:00:04]} 22. Qxc6+ Nxc6 {[%emt 0:00:01]} 23. Bxc4 {[%emt 0:00:07]} Rxc7
{[%emt 0:00:02]} 24. Bb5 {[%emt 0:00:05]} Bd6 {[%emt 0:00:07]} 25. fxe5 Bxe5 {
[%emt 0:00:01]} 26. f4 {[%emt 0:00:19]} Bf6 {[%emt 0:00:01]} 27. Bd4 {[%emt 0:
00:23]} Ke7 {[%emt 0:00:05]} 28. Bc5+ {[%emt 0:00:08]} Ke6 {[%emt 0:00:03]} 29.
O-O {[%emt 0:00:05]} Bxh4 {[%emt 0:00:03]} 30. Rc2 {[%emt 0:00:08]} f6 {
[%emt 0:00:02]} 31. Re2+ {[%emt 0:00:05]} Kf7 {[%emt 0:00:01]} 32. Bc4+ {
[%emt 0:00:04]} Kg6 {[%emt 0:00:01]} 33. f5+ {[%emt 0:00:01]} Kh6 {[%emt 0:00:
03]} 34. Rh2 {[%emt 0:00:03]} g5 {[%emt 0:00:04]} 35. fxg6 {[%emt 0:00:01]} Kg5
{[%emt 0:00:02]} 36. Be3+ {[%emt 0:00:03]} Kxg6 {[%emt 0:00:04]} 37. Bd3+ {
[%emt 0:00:06]} Kf7 {[%emt 0:00:03]} 38. Rxh4 {[%emt 0:00:01]} Rg8+ {[%emt 0:
00:01]} 39. Kh1 {[%emt 0:00:02]} h5 {[%emt 0:00:02]} 40. Bc4+ {[%emt 0:00:04]}
Kf8 {[%emt 0:00:02]} 41. Bxg8 {[%emt 0:00:01]} Kxg8 {[%emt 0:00:01]} 42. Rxf6 {
[%emt 0:00:02]} Re7 {[%emt 0:00:02]} 43. Rxc6 {[%emt 0:00:01]} Rxe3 {[%emt 0:
00:01]} 44. Rxh5 {[%emt 0:00:01]} Re2 {[%emt 0:00:01]} 45. a4 {[%emt 0:00:02]}
Rc2 {[%emt 0:00:01]} 46. a5 {[%emt 0:00:01]} Ra2 {[%emt 0:00:01]} 47. Rc7 {
[%emt 0:00:01]} Ra4 {[%emt 0:00:03]} 48. Rxa7 {[%emt 0:00:02]} 1-0

[Event "FIDE Women World Blitz 2021"]
[Site "Warsaw"]
[Date "2021.12.30"]
[Round "13.3"]
[White "Vaishali R"]
[Black "Muzychuk, Anna"]
[Result "1-0"]
[ECO "A80"]
[WhiteElo "2405"]
[BlackElo "2533"]
[Annotator "ChessBase"]
[PlyCount "75"]
[EventDate "2021.12.29"]
[EventType "swiss"]
[EventCountry "POL"]
[Tiebreak "Cut1 Buchholz"]
[SourceTitle "playchess.com"]
[Source "ChessBase"]
[SourceQuality "1"]
[TimeControl "180+2"]

1. d4 {[%emt 0:00:03]} f5 {[%emt 0:00:01]} 2. Bf4 {[%emt 0:00:07]} Nf6 {
[%emt 0:00:05]} 3. e3 {[%emt 0:00:00]} d6 {[%emt 0:00:05]} 4. Nc3 {[%emt 0:00:
01]} g6 {[%emt 0:00:06]} 5. h4 {[%emt 0:00:02]} h6 {[%emt 0:00:23]} 6. Qf3 {
[%emt 0:00:14]} Nc6 {[%emt 0:00:40]} 7. Bc4 {[%emt 0:00:31]} e5 {[%emt 0:00:15]
} 8. dxe5 {[%emt 0:00:08]} dxe5 {[%emt 0:00:01]} 9. Qg3 {[%emt 0:00:17]} Ng4 {
[%emt 0:00:06]} 10. h5 {[%emt 0:00:59]} g5 {[%emt 0:00:10]} 11. Rd1 {[%emt 0:
00:11]} Bd6 {[%emt 0:00:02]} 12. Nge2 {[%emt 0:00:20]} exf4 {[%emt 0:00:10]}
13. exf4 {[%emt 0:00:01]} Qf6 {[%emt 0:00:07]} 14. Nd5 {[%emt 0:00:14]} Qxb2 {
[%emt 0:00:08]} 15. O-O {[%emt 0:00:07]} Bd7 {[%emt 0:00:22]} 16. Qd3 {[%emt 0:
00:05]} O-O-O {[%emt 0:00:17]} 17. Rb1 {[%emt 0:00:01]} Qa3 {[%emt 0:00:00]}
18. Rb3 {[%emt 0:00:05]} Qc5 {[%emt 0:00:16]} 19. Rb5 {[%emt 0:00:02]} Qa3 {
[%emt 0:00:01]} 20. Rb3 {[%emt 0:00:01]} Qc5 {[%emt 0:00:04]} 21. Rb5 {[%emt 0:
00:06]} Nce5 {[%emt 0:00:04]} 22. Rxc5 {[%emt 0:00:05]} Nxd3 {[%emt 0:00:01]}
23. Ra5 {[%emt 0:00:03]} Nxf4 {[%emt 0:00:09]} 24. Nexf4 {[%emt 0:00:03]} gxf4
{[%emt 0:00:02]} 25. Rb1 {[%emt 0:00:01]} Kb8 {[%emt 0:00:02]} 26. Ba6 {
[%emt 0:00:03]} b6 {[%emt 0:00:01]} 27. c4 {[%emt 0:00:03]} Ka8 {[%emt 0:00:04]
} 28. c5 {[%emt 0:00:01]} Be5 {[%emt 0:00:04]} 29. cxb6 {[%emt 0:00:01]} cxb6 {
[%emt 0:00:02]} 30. Nxb6+ {[%emt 0:00:04]} axb6 {[%emt 0:00:01]} 31. Rxb6 {
[%emt 0:00:00]} Bc3 {[%emt 0:00:11]} 32. Ra3 {[%emt 0:00:03]} Ka7 {[%emt 0:00:
02]} 33. Rb7+ {[%emt 0:00:01]} Ka8 {[%emt 0:00:00]} 34. Rb6 {[%emt 0:00:02]}
Ka7 {[%emt 0:00:01]} 35. Rb7+ {[%emt 0:00:02]} Ka8 {[%emt 0:00:00]} 36. Rbb3 {
[%emt 0:00:01]} Bd4 {[%emt 0:00:06]} 37. Bc4+ {[%emt 0:00:03]} Ba7 {[%emt 0:00:
00]} 38. Bd5+ {[%emt 0:00:00]} 1-0